[Event "ESP-chT 1st Division 2020"]
[Site "Padron"]
[Date "2020.10.04"]
[Round "2.10"]
[White "Abal Cores, Lucas"]
[Black "Herrera Delgado, Alejandro"]
[Result "1/2-1/2"]
[ECO "C55"]
[WhiteElo "2315"]
[BlackElo "2280"]
[Annotator "ChessBase"]
[PlyCount "110"]
[EventDate "2020.10.01"]
[EventType "team-tourn"]
[EventCountry "ESP"]
[SourceTitle "playchess.com"]
[Source "ChessBase"]
[SourceQuality "1"]
[TimeControl "5400+30"]

1. e4 {[%emt 0:00:00]} e5 {[%emt 0:00:00]} 2. Nf3 {[%emt 0:00:00]} Nc6 {[%emt 0:00:00]} 3. d4 {[%emt 0:00:00]} exd4 {[%emt 0:00:16]} 4. Bc4 {[%emt 0:00:06]} Nf6 {[%emt 0:00:35]} 5. e5 {[%emt 0:00:26]} d5 {[%emt 0:00:12]} 6. Bb5 {[%emt 0:00:06]} Nd7 {[%emt 0:00:25]} 7. O-O {[%emt 0:02:42]} Be7 {[%emt 0:00:29]} 8. Bf4 {[%emt 0:08:18]} O-O {[%emt 0:02:24]} 9. Bxc6 {[%emt 0:00:14]} bxc6 {[%emt 0:00:06]} 10. Nxd4 {[%emt 0:00:07]} Nb8 {[%emt 0:00:27]} 11. Re1 {[%emt 0:08:21]} c5 {[%emt 0:02:10]} 12. Nb3 {[%emt 0:01:16]} Nc6 {[%emt 0:03:28]} 13. c3 {[%emt 0:05:50]} a5 {[%emt 0:05:16]} 14. N1d2 {[%emt 0:05:38]} a4 {[%emt 0:04:23]} 15. Nc1 {[%emt 0:00:07]} Bf5 {[%emt 0:00:06]} 16. Qf3 {[%emt 0:10:42]} Qd7 {[%emt 0:02:34]} 17. Ne2 {[%emt 0:11:33]} Rab8 {[%emt 0:18:37]} 18. b3 {[%emt 0:07:44]} axb3 {[%emt 0:00:09]} 19. axb3 {[%emt 0:00:57]} Bc2 {[%emt 0:00:13]} 20. Ra6 {[%emt 0:10:07]} Bxb3 {[%emt 0:07:47]} 21. Qd3 {[%emt 0:12:06]} c4 {[%emt 0:08:12]} 22. Qg3 {[%emt 0:02:58]} Bc2 {[%emt 0:00:30]} 23. h4 {[%emt 0:01:55]} Ra8 {[%emt 0:16:09]} 24. Rea1 {[%emt 0:02:12]} Rxa6 {[%emt 0:00:14]} 25. Rxa6 {[%emt 0:00:02]} Bd3 {[%emt 0:00:24]} 26. Bh6 {[%emt 0:01:00]} Bg6 {[%emt 0:02:00]} 27. Be3 {[%emt 0:00:04]} Re8 {[%emt 0:05:02]} 28. Nf3 {[%emt 0:02:05]} Bh5 {[%emt 0:05:11]} 29. Ned4 {[%emt 0:01:47]} Nxd4 {[%emt 0:01:02]} 30. Nxd4 {[%emt 0:01:04]} Qg4 {[%emt 0:07:08]} 31. Qxg4 {[%emt 0:02:15]} Bxg4 {[%emt 0:00:05]} 32. g3 {[%emt 0:00:24]} c5 {[%emt 0:00:43]} 33. Nc6 {[%emt 0:01:04]} Bf8 {[%emt 0:00:04]} 34. f4 {[%emt 0:01:43]} Rc8 {[%emt 0:01:20]} 35. Kf2 {[%emt 0:00:47]} Bd7 {[%emt 0:01:18]} 36. Na5 {[%emt 0:00:03]} Rb8 {[%emt 0:02:52]} 37. Ra7 {[%emt 0:00:13]} Bg4 {[%emt 0:01:13]} 38. Nb7 {[%emt 0:00:49]} h5 {[%emt 0:01:55]} 39. Ke1 {[%emt 0:00:09]} d4 {[%emt 0:02:39]} 40. cxd4 {[%emt 0:01:26]} cxd4 {[%emt 0:00:04]} 41. Bxd4 {[%emt 0:00:03]} Bb4+ {[%emt 0:00:05]} 42. Kf2 {[%emt 0:00:03]} c3 {[%emt 0:00:17]} 43. Nd6 {[%emt 0:00:07]} c2 {[%emt 0:00:26]} 44. Rc7 {[%emt 0:00:04]} Bd1 {[%emt 0:02:49]} 45. Be3 {[%emt 0:00:15]} Rd8 {[%emt 0:00:35]} 46. Ne4 {[%emt 0:02:05]} Ba3 {[%emt 0:00:26]} 47. f5 {[%emt 0:00:46]} Bg4 {[%emt 0:00:35]} 48. f6 {[%emt 0:01:06]} Bf5 {[%emt 0:00:06]} 49. Ng5 {[%emt 0:00:24]} gxf6 {[%emt 0:00:37]} 50. Nxf7 {[%emt 0:00:16]} Rd7 {[%emt 0:00:26]} 51. Nh6+ {[%emt 0:00:46]} Kh7 {[%emt 0:00:05]} 52. Rc3 {[%emt 0:00:33]} Rd3 {[%emt 0:01:11]} 53. Rc7+ {[%emt 0:00:08]} Rd7 {[%emt 0:00:06]} 54. Rc3 {[%emt 0:00:30]} Rd3 {[%emt 0:00:03]} 55. Rc7+ {[%emt 0:00:48]} Rd7 {[%emt 0:00:05]} 1/2-1/2

[Event "ESP-chT 1st Division 2020"]
[Site "Padron"]
[Date "2020.10.04"]
[Round "2.11"]
[White "Garcia Jimenez, Santiago"]
[Black "Segura Santos, Luis"]
[Result "1-0"]
[ECO "B90"]
[WhiteElo "2203"]
[BlackElo "2122"]
[Annotator "ChessBase"]
[PlyCount "119"]
[EventDate "2020.10.01"]
[EventType "team-tourn"]
[EventCountry "ESP"]
[SourceTitle "playchess.com"]
[Source "ChessBase"]
[SourceQuality "1"]
[TimeControl "5400+30"]

1. e4 {[%emt 0:00:00]} c5 {[%emt 0:00:00]} 2. Nf3 {[%emt 0:00:00]} d6 {[%emt 0:00:00]} 3. d4 {[%emt 0:00:00]} Nf6 {[%emt 0:00:00]} 4. Nc3 {[%emt 0:00:28]} cxd4 {[%emt 0:00:04]} 5. Nxd4 {[%emt 0:00:07]} a6 {[%emt 0:00:03]} 6. h4 {[%emt 0:00:56]} b5 {[%emt 0:07:52]} 7. a4 {[%emt 0:00:09]} b4 {[%emt 0:00:42]} 8. Nd5 {[%emt 0:00:06]} Bb7 {[%emt 0:05:21]} 9. Nxf6+ {[%emt 0:02:19]} gxf6 {[%emt 0:00:12]} 10. Bc4 {[%emt 0:01:55]} d5 {[%emt 0:10:41]} 11. exd5 {[%emt 0:12:10]} Bxd5 {[%emt 0:00:13]} 12. Nc6 {[%emt 0:03:49]} Nxc6 {[%emt 0:03:28]} 13. Bxd5 {[%emt 0:00:30]} Rc8 {[%emt 0:01:55]} 14. Be3 {[%emt 0:19:07]} e6 {[%emt 0:01:31]} 15. Bc4 {[%emt 0:01:17]} Qxd1+ {[%emt 0:14:28]} 16. Rxd1 {[%emt 0:00:13]} Nb8 {[%emt 0:00:30]} 17. b3 {[%emt 0:02:52]} Bc5 {[%emt 0:10:45]} 18. Bf4 {[%emt 0:12:58]} e5 {[%emt 0:03:42]} 19. Be3 {[%emt 0:00:25]} Ke7 {[%emt 0:07:26]} 20. Ke2 {[%emt 0:06:53]} Bxe3 {[%emt 0:05:43]} 21. fxe3 {[%emt 0:00:26]} Nd7 {[%emt 0:05:22]} 22. Rd2 {[%emt 0:04:31]} Nc5 {[%emt 0:01:58]} 23. Rhd1 {[%emt 0:00:19]} Rc7 {[%emt 0:02:33]} 24. Bd5 {[%emt 0:02:50]} Rg8 {[%emt 0:07:11]} 25. Kf3 {[%emt 0:02:19]} f5 {[%emt 0:01:26]} 26. g3 {[%emt 0:03:10]} Ne4 {[%emt 0:03:03]} 27. Bxe4 {[%emt 0:03:40]} fxe4+ {[%emt 0:00:09]} 28. Kxe4 {[%emt 0:01:45]} Rxg3 {[%emt 0:00:08]} 29. Kxe5 {[%emt 0:03:22]} Rxe3+ {[%emt 0:03:01]} 30. Kf4 {[%emt 0:00:20]} Re6 {[%emt 0:01:17]} 31. h5 {[%emt 0:01:39]} Rc5 {[%emt 0:00:32]} 32. Rd7+ {[%emt 0:00:18]} Kf6 {[%emt 0:00:12]} 33. R1d5 {[%emt 0:01:26]} Rxd5 {[%emt 0:02:37]} 34. Rxd5 {[%emt 0:00:02]} Rc6 {[%emt 0:00:23]} 35. Rd4 {[%emt 0:05:14]} a5 {[%emt 0:00:52]} 36. Rd5 {[%emt 0:05:04]} Rxc2 {[%emt 0:00:18]} 37. Rxa5 {[%emt 0:00:08]} Rf2+ {[%emt 0:01:28]} 38. Kg4 {[%emt 0:01:02]} Rg2+ {[%emt 0:00:16]} 39. Kf4 {[%emt 0:00:14]} Rf2+ {[%emt 0:00:34]} 40. Ke4 {[%emt 0:00:19]} Rb2 {[%emt 0:00:22]} 41. Rf5+ {[%emt 0:00:21]} Ke6 {[%emt 0:00:16]} 42. Rf3 {[%emt 0:03:02]} Rh2 {[%emt 0:00:21]} 43. Kd4 {[%emt 0:00:21]} Rxh5 {[%emt 0:00:22]} 44. Kc4 {[%emt 0:00:06]} Rh4+ {[%emt 0:01:23]} 45. Kc5 {[%emt 0:00:00]} f5 {[%emt 0:00:25]} 46. a5 {[%emt 0:00:27]} Ke5 {[%emt 0:00:30]} 47. Re3+ {[%emt 0:00:12]} Kf4 {[%emt 0:00:41]} 48. Re7 {[%emt 0:02:10]} Kg3 {[%emt 0:00:51]} 49. a6 {[%emt 0:00:38]} Rh1 {[%emt 0:00:25]} 50. Rg7+ {[%emt 0:00:32]} Kf3 {[%emt 0:00:08]} 51. a7 {[%emt 0:00:08]} Ra1 {[%emt 0:00:07]} 52. Rxh7 {[%emt 0:00:12]} f4 {[%emt 0:00:36]} 53. Kxb4 {[%emt 0:00:40]} Ke3 {[%emt 0:00:38]} 54. Kc5 {[%emt 0:01:18]} f3 {[%emt 0:00:15]} 55. Kb6 {[%emt 0:00:06]} f2 {[%emt 0:00:12]} 56. Rf7 {[%emt 0:00:03]} Ra3 {[%emt 0:01:55]} 57. b4 {[%emt 0:00:22]} Ra4 {[%emt 0:00:26]} 58. b5 {[%emt 0:00:15]} Rf4 {[%emt 0:00:16]} 59. Rxf4 {[%emt 0:00:22]} Kxf4 {[%emt 0:00:04]} 60. a8=Q {[%emt 0:00:09]} 1-0

[Event "ESP-chT 1st Division 2020"]
[Site "Padron"]
[Date "2020.10.04"]
[Round "2.12"]
[White "Dorado Meijide, Andrea"]
[Black "Perera Borrego, Maria Adela"]
[Result "1-0"]
[ECO "C00"]
[WhiteElo "1779"]
[BlackElo "2221"]
[Annotator "ChessBase"]
[PlyCount "121"]
[EventDate "2020.10.01"]
[EventType "team-tourn"]
[EventCountry "ESP"]
[SourceTitle "playchess.com"]
[Source "ChessBase"]
[SourceQuality "1"]
[TimeControl "5400+30"]

1. e4 {[%emt 0:00:00]} e6 {[%emt 0:00:00]} 2. d4 {[%emt 0:00:00]} d5 {[%emt 0:00:00]} 3. Bd3 {[%emt 0:00:00]} c5 {[%emt 0:01:23]} 4. exd5 {[%emt 0:00:20]} Qxd5 {[%emt 0:01:11]} 5. Nc3 {[%emt 0:03:00]} Qd8 {[%emt 0:04:25]} 6. Nf3 {[%emt 0:07:34]} Nc6 {[%emt 0:02:08]} 7. Bf4 {[%emt 0:04:29]} Nf6 {[%emt 0:01:11]} 8. Bb5 {[%emt 0:06:42]} Bd7 {[%emt 0:12:34]} 9. d5 {[%emt 0:11:59]} exd5 {[%emt 0:09:54]} 10. O-O {[%emt 0:00:06]} Be7 {[%emt 0:20:44]} 11. Nxd5 {[%emt 0:06:01]} Nxd5 {[%emt 0:02:26]} 12. Qxd5 {[%emt 0:00:05]} O-O {[%emt 0:07:04]} 13. Rad1 {[%emt 0:03:26]} Be6 {[%emt 0:05:48]} 14. Qe4 {[%emt 0:03:07]} Qc8 {[%emt 0:03:09]} 15. Rfe1 {[%emt 0:04:14]} Bf5 {[%emt 0:03:49]} 16. Qc4 {[%emt 0:03:37]} Bf6 {[%emt 0:02:54]} 17. Qxc5 {[%emt 0:01:41]} Bxb2 {[%emt 0:08:21]} 18. Bxc6 {[%emt 0:04:00]} bxc6 {[%emt 0:00:02]} 19. c3 {[%emt 0:02:20]} Bg6 {[%emt 0:07:57]} 20. Rd2 {[%emt 0:08:57]} Qg4 {[%emt 0:01:33]} 21. Bd6 {[%emt 0:04:04]} Bxc3 {[%emt 0:03:20]} 22. Qxc3 {[%emt 0:00:36]} Rfe8 {[%emt 0:00:34]} 23. Rde2 {[%emt 0:04:39]} Rxe2 {[%emt 0:00:30]} 24. Rxe2 {[%emt 0:00:07]} Be4 {[%emt 0:00:26]} 25. h3 {[%emt 0:04:20]} Qg6 {[%emt 0:00:10]} 26. Nh4 {[%emt 0:00:55]} Qxd6 {[%emt 0:00:50]} 27. Rxe4 {[%emt 0:00:10]} Qd5 {[%emt 0:00:29]} 28. Qe3 {[%emt 0:00:49]} Kf8 {[%emt 0:00:35]} 29. a4 {[%emt 0:02:21]} Rb8 {[%emt 0:00:19]} 30. Qd4 {[%emt 0:03:41]} Qxd4 {[%emt 0:00:33]} 31. Rxd4 {[%emt 0:00:07]} Ke7 {[%emt 0:00:16]} 32. Nf5+ {[%emt 0:00:27]} Kf6 {[%emt 0:00:06]} 33. g4 {[%emt 0:00:25]} g6 {[%emt 0:00:38]} 34. Ne3 {[%emt 0:01:24]} Ke6 {[%emt 0:00:41]} 35. f4 {[%emt 0:00:33]} c5 {[%emt 0:00:50]} 36. Rc4 {[%emt 0:01:00]} Kd6 {[%emt 0:00:17]} 37. Kf2 {[%emt 0:00:13]} Rb2+ {[%emt 0:00:23]} 38. Rc2 {[%emt 0:02:08]} Rb4 {[%emt 0:00:09]} 39. Rc4 {[%emt 0:00:40]} Rb2+ {[%emt 0:00:03]} 40. Kf3 {[%emt 0:00:05]} Rh2 {[%emt 0:00:09]} 41. Kg3 {[%emt 0:00:26]} Re2 {[%emt 0:00:16]} 42. Re4 {[%emt 0:00:24]} Ra2 {[%emt 0:00:20]} 43. f5 {[%emt 0:00:37]} g5 {[%emt 0:01:53]} 44. h4 {[%emt 0:00:48]} h6 {[%emt 0:00:01]} 45. hxg5 {[%emt 0:00:32]} hxg5 {[%emt 0:00:01]} 46. f6 {[%emt 0:00:20]} Kc6 {[%emt 0:01:47]} 47. Re7 {[%emt 0:01:20]} Ra3 {[%emt 0:00:35]} 48. Kf3 {[%emt 0:00:56]} Rxa4 {[%emt 0:00:21]} 49. Rxf7 {[%emt 0:00:07]} Kd6 {[%emt 0:00:40]} 50. Rf8 {[%emt 0:02:38]} Rf4+ {[%emt 0:00:28]} 51. Kg3 {[%emt 0:00:43]} c4 {[%emt 0:00:09]} 52. f7 {[%emt 0:03:06]} Ke7 {[%emt 0:00:25]} 53. Ra8 {[%emt 0:01:27]} Kxf7 {[%emt 0:00:22]} 54. Rxa7+ {[%emt 0:00:06]} Ke6 {[%emt 0:00:09]} 55. Rc7 {[%emt 0:00:22]} Re4 {[%emt 0:01:23]} 56. Kf3 {[%emt 0:00:05]} Rf4+ {[%emt 0:00:05]} 57. Ke2 {[%emt 0:00:06]} Ke5 {[%emt 0:01:12]} 58. Rxc4 {[%emt 0:02:03]} Rxc4 {[%emt 0:00:24]} 59. Nxc4+ {[%emt 0:00:05]} Kf4 {[%emt 0:00:05]} 60. Ne3 {[%emt 0:00:03]} Ke4 {[%emt 0:00:05]} 61. Ng2 {[%emt 0:00:08]} 1-0

[Event "ESP-chT 1st Division 2020"]
[Site "Padron"]
[Date "2020.10.04"]
[Round "2.13"]
[White "Espinosa Aranda, Angel"]
[Black "Alsina Leal, Daniel"]
[Result "0-1"]
[ECO "A28"]
[WhiteElo "2502"]
[BlackElo "2494"]
[Annotator "ChessBase"]
[PlyCount "72"]
[EventDate "2020.10.01"]
[EventType "team-tourn"]
[EventCountry "ESP"]
[SourceTitle "playchess.com"]
[Source "ChessBase"]
[SourceQuality "1"]
[TimeControl "5400+30"]

1. c4 {[%emt 0:00:00]} e5 {[%emt 0:00:11]} 2. Nc3 {[%emt 0:00:00]} Nf6 {[%emt 0:00:38]} 3. Nf3 {[%emt 0:00:28]} Nc6 {[%emt 0:00:31]} 4. e3 {[%emt 0:00:35]} Bb4 {[%emt 0:01:16]} 5. Qc2 {[%emt 0:00:50]} Bxc3 {[%emt 0:00:55]} 6. Qxc3 {[%emt 0:00:10]} Qe7 {[%emt 0:00:05]} 7. d4 {[%emt 0:01:05]} e4 {[%emt 0:01:33]} 8. Nd2 {[%emt 0:00:55]} O-O {[%emt 0:13:54]} 9. a3 {[%emt 0:08:12]} a5 {[%emt 0:01:09]} 10. d5 {[%emt 0:11:32]} Ne5 {[%emt 0:01:42]} 11. b3 {[%emt 0:00:05]} c6 {[%emt 0:14:12]} 12. Bb2 {[%emt 0:00:43]} Re8 {[%emt 0:10:21]} 13. Be2 {[%emt 0:17:15]} cxd5 {[%emt 0:19:59]} 14. cxd5 {[%emt 0:00:14]} d6 {[%emt 0:01:58]} 15. h3 {[%emt 0:15:25]} Bf5 {[%emt 0:03:55]} 16. Qd4 {[%emt 0:08:08]} Rac8 {[%emt 0:04:40]} 17. g4 {[%emt 0:12:31]} Bg6 {[%emt 0:00:43]} 18. h4 {[%emt 0:02:09]} h5 {[%emt 0:08:09]} 19. g5 {[%emt 0:06:53]} Nfg4 {[%emt 0:02:20]} 20. Nc4 {[%emt 0:00:51]} f6 {[%emt 0:01:54]} 21. gxf6 {[%emt 0:09:38]} Qxf6 {[%emt 0:00:26]} 22. Bxg4 {[%emt 0:00:37]} hxg4 {[%emt 0:02:47]} 23. Nxe5 {[%emt 0:00:04]} dxe5 {[%emt 0:00:47]} 24. Qd2 {[%emt 0:00:04]} g3 {[%emt 0:02:14]} 25. fxg3 {[%emt 0:01:06]} Bh5 {[%emt 0:00:21]} 26. Rf1 {[%emt 0:01:47]} Bf3 {[%emt 0:00:37]} 27. Rc1 {[%emt 0:00:38]} Rcd8 {[%emt 0:03:04]} 28. Rc5 {[%emt 0:01:03]} Qg6 {[%emt 0:00:57]} 29. Qc1 {[%emt 0:00:57]} Qxg3+ {[%emt 0:00:36]} 30. Kd2 {[%emt 0:00:04]} Rxd5+ {[%emt 0:01:56]} 31. Bd4 {[%emt 0:00:25]} Qg2+ {[%emt 0:00:36]} 32. Kc3 {[%emt 0:00:09]} exd4+ {[%emt 0:00:23]} 33. exd4 {[%emt 0:00:02]} Rxc5+ {[%emt 0:00:36]} 34. dxc5 {[%emt 0:00:02]} Qe2 {[%emt 0:00:58]} 35. Rg1 {[%emt 0:00:25]} Qd3+ {[%emt 0:00:25]} 36. Kb2 {[%emt 0:00:03]} e3 {[%emt 0:00:24]} 0-1

[Event "ESP-chT 1st Division 2020"]
[Site "Padron"]
[Date "2020.10.04"]
[Round "2.14"]
[White "Alonso Moyano, Jonathan"]
[Black "Plazuelo Pascual, Juan"]
[Result "1/2-1/2"]
[ECO "C11"]
[WhiteElo "2334"]
[BlackElo "2474"]
[Annotator "ChessBase"]
[PlyCount "60"]
[EventDate "2020.10.01"]
[EventType "team-tourn"]
[EventCountry "ESP"]
[SourceTitle "playchess.com"]
[Source "ChessBase"]
[SourceQuality "1"]
[TimeControl "5400+30"]

1. e4 {[%emt 0:00:00]} e6 {[%emt 0:00:00]} 2. d4 {[%emt 0:00:30]} d5 {[%emt 0:00:02]} 3. Nc3 {[%emt 0:00:33]} Nf6 {[%emt 0:00:56]} 4. exd5 {[%emt 0:00:16]} exd5 {[%emt 0:02:03]} 5. Bd3 {[%emt 0:00:45]} c5 {[%emt 0:05:35]} 6. Bg5 {[%emt 0:12:30]} Be6 {[%emt 0:18:45]} 7. Qf3 {[%emt 0:17:36]} Be7 {[%emt 0:14:33]} 8. dxc5 {[%emt 0:07:26]} Nbd7 {[%emt 0:04:03]} 9. Nge2 {[%emt 0:07:40]} O-O {[%emt 0:01:53]} 10. O-O {[%emt 0:02:50]} h6 {[%emt 0:09:50]} 11. Bh4 {[%emt 0:11:07]} Bg4 {[%emt 0:06:28]} 12. Qe3 {[%emt 0:01:02]} Re8 {[%emt 0:07:27]} 13. Rfe1 {[%emt 0:13:14]} Bxc5 {[%emt 0:05:38]} 14. Bxf6 {[%emt 0:11:26]} Qxf6 {[%emt 0:01:01]} 15. Qf4 {[%emt 0:00:36]} Bxe2 {[%emt 0:02:43]} 16. Qxf6 {[%emt 0:00:29]} Nxf6 {[%emt 0:00:08]} 17. Rxe2 {[%emt 0:01:38]} Bd4 {[%emt 0:04:45]} 18. Rxe8+ {[%emt 0:01:32]} Rxe8 {[%emt 0:00:18]} 19. Ne2 {[%emt 0:00:07]} Bb6 {[%emt 0:01:02]} 20. c3 {[%emt 0:02:30]} Ng4 {[%emt 0:06:37]} 21. Nd4 {[%emt 0:00:54]} Ne5 {[%emt 0:00:04]} 22. Bb5 {[%emt 0:03:56]} Re7 {[%emt 0:00:52]} 23. Rd1 {[%emt 0:01:09]} a6 {[%emt 0:01:07]} 24. Bf1 {[%emt 0:01:08]} g6 {[%emt 0:01:13]} 25. h3 {[%emt 0:00:40]} Nc6 {[%emt 0:01:43]} 26. Nxc6 {[%emt 0:00:51]} bxc6 {[%emt 0:00:04]} 27. Bd3 {[%emt 0:00:15]} a5 {[%emt 0:00:37]} 28. Kf1 {[%emt 0:00:08]} Kg7 {[%emt 0:00:15]} 29. Re1 {[%emt 0:00:12]} Rxe1+ {[%emt 0:00:13]} 30. Kxe1 {[%emt 0:00:05]} Kf6 {[%emt 0:00:03]} 1/2-1/2

[Event "ESP-chT 1st Division 2020"]
[Site "Padron"]
[Date "2020.10.04"]
[Round "2.15"]
[White "Rubio Mejia, Luis Ignacio"]
[Black "Hernandez, Cristian Andres"]
[Result "1/2-1/2"]
[ECO "E46"]
[WhiteElo "2405"]
[BlackElo "2320"]
[Annotator "ChessBase"]
[PlyCount "96"]
[EventDate "2020.10.01"]
[EventType "team-tourn"]
[EventCountry "ESP"]
[SourceTitle "playchess.com"]
[Source "ChessBase"]
[SourceQuality "1"]
[TimeControl "5400+30"]

1. d4 {[%emt 0:00:00]} Nf6 {[%emt 0:00:00]} 2. c4 {[%emt 0:00:00]} e6 {[%emt 0:00:00]} 3. Nc3 {[%emt 0:00:05]} Bb4 {[%emt 0:00:12]} 4. e3 {[%emt 0:00:47]} O-O {[%emt 0:01:19]} 5. Bd2 {[%emt 0:00:16]} d5 {[%emt 0:01:41]} 6. Nf3 {[%emt 0:00:45]} b6 {[%emt 0:01:17]} 7. cxd5 {[%emt 0:01:16]} exd5 {[%emt 0:00:07]} 8. Bd3 {[%emt 0:01:12]} Bb7 {[%emt 0:02:33]} 9. O-O {[%emt 0:00:37]} a6 {[%emt 0:00:33]} 10. Ne5 {[%emt 0:15:52]} Nbd7 {[%emt 0:12:02]} 11. Rc1 {[%emt 0:17:12]} c5 {[%emt 0:14:14]} 12. Nxd7 {[%emt 0:23:18]} Qxd7 {[%emt 0:05:37]} 13. dxc5 {[%emt 0:04:22]} d4 {[%emt 0:08:35]} 14. c6 {[%emt 0:20:36]} Bxc6 {[%emt 0:02:02]} 15. exd4 {[%emt 0:00:14]} Qxd4 {[%emt 0:02:17]} 16. Ne2 {[%emt 0:05:15]} Qxd3 {[%emt 0:03:17]} 17. Bxb4 {[%emt 0:00:08]} Qe4 {[%emt 0:01:23]} 18. Rxc6 {[%emt 0:00:38]} Qxc6 {[%emt 0:00:34]} 19. Bxf8 {[%emt 0:00:09]} Rxf8 {[%emt 0:00:24]} 20. Nc3 {[%emt 0:01:17]} b5 {[%emt 0:01:53]} 21. Qd4 {[%emt 0:01:31]} Re8 {[%emt 0:06:27]} 22. Rd1 {[%emt 0:01:48]} h5 {[%emt 0:02:23]} 23. h3 {[%emt 0:00:42]} Re6 {[%emt 0:01:37]} 24. Kf1 {[%emt 0:01:15]} g6 {[%emt 0:03:25]} 25. a4 {[%emt 0:01:38]} bxa4 {[%emt 0:01:33]} 26. Qxa4 {[%emt 0:00:07]} Qc8 {[%emt 0:02:15]} 27. Kg1 {[%emt 0:01:39]} Qb7 {[%emt 0:01:23]} 28. Qc2 {[%emt 0:00:21]} Re5 {[%emt 0:00:12]} 29. h4 {[%emt 0:00:53]} Qe7 {[%emt 0:02:30]} 30. Qd2 {[%emt 0:00:21]} Kg7 {[%emt 0:00:14]} 31. g3 {[%emt 0:00:23]} Qb4 {[%emt 0:01:02]} 32. Kg2 {[%emt 0:00:45]} Ng4 {[%emt 0:01:13]} 33. Nd5 {[%emt 0:00:34]} Qe4+ {[%emt 0:00:45]} 34. Kg1 {[%emt 0:00:17]} Qf3 {[%emt 0:01:44]} 35. Qd4 {[%emt 0:00:46]} f6 {[%emt 0:02:22]} 36. Nc3 {[%emt 0:00:04]} Ne3 {[%emt 0:03:17]} 37. Qd7+ {[%emt 0:00:44]} Kh6 {[%emt 0:00:23]} 38. fxe3 {[%emt 0:00:07]} Qxg3+ {[%emt 0:00:16]} 39. Kf1 {[%emt 0:00:35]} Rxe3 {[%emt 0:01:45]} 40. Qd2 {[%emt 0:00:38]} Qf4+ {[%emt 0:00:16]} 41. Kg1 {[%emt 0:00:37]} Rg3+ {[%emt 0:00:18]} 42. Kh1 {[%emt 0:00:27]} Rh3+ {[%emt 0:04:54]} 43. Kg1 {[%emt 0:00:09]} Rxh4 {[%emt 0:01:09]} 44. Qxf4+ {[%emt 0:00:50]} Rxf4 {[%emt 0:00:06]} 45. Ra1 {[%emt 0:00:24]} Rg4+ {[%emt 0:03:29]} 46. Kh1 {[%emt 0:00:35]} Rh4+ {[%emt 0:02:20]} 47. Kg1 {[%emt 0:00:06]} Rg4+ {[%emt 0:00:08]} 48. Kh1 {[%emt 0:00:04]} Rh4+ {[%emt 0:00:05]} 1/2-1/2

[Event "ESP-chT 1st Division 2020"]
[Site "Padron"]
[Date "2020.10.04"]
[Round "2.16"]
[White "Perez Manas, Benjamin"]
[Black "Martinez Martin, David"]
[Result "1-0"]
[ECO "B72"]
[WhiteElo "2259"]
[BlackElo "2389"]
[Annotator "ChessBase"]
[PlyCount "119"]
[EventDate "2020.10.01"]
[EventType "team-tourn"]
[EventCountry "ESP"]
[SourceTitle "playchess.com"]
[Source "ChessBase"]
[SourceQuality "1"]
[TimeControl "5400+30"]

1. e4 {[%emt 0:00:00]} c5 {[%emt 0:00:00]} 2. Nf3 {[%emt 0:00:00]} d6 {[%emt 0:00:00]} 3. d4 {[%emt 0:00:20]} cxd4 {[%emt 0:00:00]} 4. Nxd4 {[%emt 0:00:05]} Nf6 {[%emt 0:00:00]} 5. Nc3 {[%emt 0:00:07]} g6 {[%emt 0:00:00]} 6. Be3 {[%emt 0:00:15]} Nc6 {[%emt 0:01:02]} 7. f3 {[%emt 0:34:42]} h5 {[%emt 0:00:20]} 8. Qd2 {[%emt 0:00:42]} Nxd4 {[%emt 0:00:07]} 9. Bxd4 {[%emt 0:01:58]} Bh6 {[%emt 0:00:10]} 10. Qf2 {[%emt 0:02:10]} Qa5 {[%emt 0:01:34]} 11. Bb5+ {[%emt 0:01:49]} Kf8 {[%emt 0:01:07]} 12. O-O {[%emt 0:08:08]} e5 {[%emt 0:04:00]} 13. Be3 {[%emt 0:00:36]} Bxe3 {[%emt 0:01:19]} 14. Qxe3 {[%emt 0:00:08]} Be6 {[%emt 0:00:36]} 15. Ba4 {[%emt 0:10:13]} Qc5 {[%emt 0:03:47]} 16. Rfe1 {[%emt 0:00:21]} a6 {[%emt 0:07:47]} 17. Bb3 {[%emt 0:01:18]} Qxe3+ {[%emt 0:27:05]} 18. Rxe3 {[%emt 0:00:14]} Bxb3 {[%emt 0:03:51]} 19. axb3 {[%emt 0:04:04]} Rc8 {[%emt 0:00:19]} 20. Rd3 {[%emt 0:02:52]} Ke7 {[%emt 0:01:19]} 21. Rd2 {[%emt 0:01:56]} Rhd8 {[%emt 0:08:35]} 22. Re1 {[%emt 0:07:49]} Rc5 {[%emt 0:06:03]} 23. Nd1 {[%emt 0:09:53]} Ke6 {[%emt 0:04:04]} 24. Ne3 {[%emt 0:01:24]} Ra5 {[%emt 0:09:50]} 25. b4 {[%emt 0:00:47]} Ra2 {[%emt 0:05:25]} 26. c3 {[%emt 0:00:12]} b5 {[%emt 0:12:47]} 27. Red1 {[%emt 0:00:57]} a5 {[%emt 0:00:48]} 28. bxa5 {[%emt 0:01:02]} Rxa5 {[%emt 0:00:05]} 29. Nd5 {[%emt 0:00:37]} Ne8 {[%emt 0:01:43]} 30. Kf2 {[%emt 0:02:51]} Rda8 {[%emt 0:00:37]} 31. Nc7+ {[%emt 0:00:33]} Nxc7 {[%emt 0:00:03]} 32. Rxd6+ {[%emt 0:00:05]} Ke7 {[%emt 0:00:05]} 33. Rd7+ {[%emt 0:00:05]} Kf6 {[%emt 0:01:22]} 34. Rxc7 {[%emt 0:00:06]} Ra2 {[%emt 0:00:02]} 35. Rd2 {[%emt 0:00:25]} Rb8 {[%emt 0:00:19]} 36. Ke3 {[%emt 0:00:55]} b4 {[%emt 0:00:24]} 37. c4 {[%emt 0:01:33]} b3 {[%emt 0:00:43]} 38. c5 {[%emt 0:00:53]} h4 {[%emt 0:00:39]} 39. Rd6+ {[%emt 0:00:44]} Kg5 {[%emt 0:00:52]} 40. Rb6 {[%emt 0:00:05]} Rd8 {[%emt 0:00:38]} 41. Rxb3 {[%emt 0:00:08]} f5 {[%emt 0:00:06]} 42. exf5 {[%emt 0:00:29]} gxf5 {[%emt 0:00:15]} 43. c6 {[%emt 0:02:04]} f4+ {[%emt 0:01:03]} 44. Ke2 {[%emt 0:00:36]} Ra1 {[%emt 0:00:35]} 45. Rd7 {[%emt 0:00:08]} Rg8 {[%emt 0:00:16]} 46. Rc3 {[%emt 0:02:24]} Kf5 {[%emt 0:00:09]} 47. c7 {[%emt 0:00:40]} Rxg2+ {[%emt 0:00:38]} 48. Kd3 {[%emt 0:00:07]} Rg8 {[%emt 0:00:07]} 49. Kc2 {[%emt 0:01:08]} Raa8 {[%emt 0:00:06]} 50. b4 {[%emt 0:00:30]} Ke6 {[%emt 0:00:31]} 51. Rh7 {[%emt 0:00:59]} Raf8 {[%emt 0:00:21]} 52. Kd3 {[%emt 0:00:41]} Kd5 {[%emt 0:00:50]} 53. Rc5+ {[%emt 0:00:32]} Kd6 {[%emt 0:00:04]} 54. Ke4 {[%emt 0:00:14]} Ra8 {[%emt 0:00:27]} 55. Rxh4 {[%emt 0:00:37]} Rgc8 {[%emt 0:00:34]} 56. Rh6+ {[%emt 0:00:12]} Kd7 {[%emt 0:00:08]} 57. Kd5 {[%emt 0:00:23]} e4 {[%emt 0:00:50]} 58. Rh7+ {[%emt 0:00:09]} Ke8 {[%emt 0:00:04]} 59. Kxe4 {[%emt 0:00:42]} Ra4 {[%emt 0:00:07]} 60. Rhh5 1-0